[Event "Live Chess"]
[Site "Chess.com"]
[Date "2023.05.21"]
[Round "-"]
[White "GMHarry-youtube"]
[Black "SupremeTactician"]
[Result "0-1"]
[WhiteElo "1996"]
[BlackElo "2165"]
[TimeControl "300"]
[EndTime "8:47:34 PDT"]
[Termination "SupremeTactician won by resignation"]

1. e4 {[%clk 0:04:59.2]} 1... e5 {[%clk 0:04:59]} 2. Nf3 {[%clk 0:04:58.5]} 2...
Nc6 {[%clk 0:04:58.4]} 3. Bc4 {[%clk 0:04:58.3]} 3... Bc5 {[%clk 0:04:57.4]} 4.
c3 {[%clk 0:04:55.7]} 4... Nf6 {[%clk 0:04:56.4]} 5. d3 {[%clk 0:04:55.3]} 5...
O-O {[%clk 0:04:54.9]} 6. O-O {[%clk 0:04:54.9]} 6... d5 {[%clk 0:04:54.1]} 7.
exd5 {[%clk 0:04:53.5]} 7... Nxd5 {[%clk 0:04:54]} 8. Re1 {[%clk 0:04:52.9]}
8... Bg4 {[%clk 0:04:52]} 9. h3 {[%clk 0:04:51.7]} 9... Bh5 {[%clk 0:04:51.4]}
10. g4 {[%clk 0:04:51.1]} 10... Bg6 {[%clk 0:04:49.8]} 11. Nxe5 {[%clk
0:04:50.5]} 11... Nxe5 {[%clk 0:04:49.1]} 12. Rxe5 {[%clk 0:04:48.8]} 12...
Bxf2+ {[%clk 0:04:43.1]} 13. Kxf2 {[%clk 0:04:47.8]} 13... Qf6+ {[%clk
0:04:42.3]} 14. Qf3 {[%clk 0:04:47.3]} 14... Qxe5 {[%clk 0:04:41.6]} 15. Qxd5
{[%clk 0:04:46.5]} 15... Qh2+ {[%clk 0:04:40.2]} 16. Qg2 {[%clk 0:04:46.1]}
16... Qd6 {[%clk 0:04:31.5]} 17. Qg3 {[%clk 0:04:42.9]} 17... Qf6+ {[%clk
0:04:28.4]} 18. Qf3 {[%clk 0:04:40.2]} 18... Qh4+ {[%clk 0:04:27.4]} 19. Qg3
{[%clk 0:04:39.2]} 19... Qf6+ {[%clk 0:04:26.7]} 20. Kg2 {[%clk 0:04:34.1]}
20... Rae8 {[%clk 0:04:23.8]} 21. Be3 {[%clk 0:04:29.1]} 21... c6 {[%clk
0:04:17.1]} 22. Nd2 {[%clk 0:04:25.3]} 22... b5 {[%clk 0:04:16.4]} 23. Bb3
{[%clk 0:04:23.3]} 23... Bxd3 {[%clk 0:04:15.5]} 24. Re1 {[%clk 0:04:15]} 24...
Qd8 {[%clk 0:03:57.6]} 25. Bd4 {[%clk 0:04:00.3]} 25... Rxe1 {[%clk 0:03:55.1]}
26. Qxe1 {[%clk 0:03:58.1]} 26... Re8 {[%clk 0:03:54.6]} 27. Be3 {[%clk
0:03:39.1]} 27... Qe7 {[%clk 0:03:44.8]} 28. Kf2 {[%clk 0:03:34.1]} 28... Qh4+
{[%clk 0:03:42.7]} 0-1

[Event "Live Chess"]
[Site "Chess.com"]
[Date "2023.05.21"]
[Round "-"]
[White "ZackirtyChess"]
[Black "Doge_Dandolo"]
[Result "0-1"]
[WhiteElo "1175"]
[BlackElo "1856"]
[TimeControl "300"]
[EndTime "8:47:42 PDT"]
[Termination "Doge_Dandolo won by resignation"]

1. f4 {[%clk 0:04:55]} 1... e5 {[%clk 0:04:56.2]} 2. fxe5 {[%clk 0:04:53.8]}
2... d6 {[%clk 0:04:55.5]} 3. exd6 {[%clk 0:04:51.8]} 3... Bxd6 {[%clk
0:04:54.7]} 4. Nf3 {[%clk 0:04:50.8]} 4... g5 {[%clk 0:04:50.2]} 5. e4 {[%clk
0:04:38.3]} 5... g4 {[%clk 0:04:47.5]} 6. e5 {[%clk 0:04:33.9]} 6... gxf3 {[%clk
0:04:43.6]} 7. exd6 {[%clk 0:04:32.2]} 7... Qxd6 {[%clk 0:04:27.1]} 8. gxf3
{[%clk 0:04:23.3]} 8... Nc6 {[%clk 0:04:22.8]} 9. Nc3 {[%clk 0:04:22.5]} 9...
Bf5 {[%clk 0:04:20]} 10. Bc4 {[%clk 0:04:21.2]} 10... O-O-O {[%clk 0:04:17.5]}
11. d3 {[%clk 0:04:20]} 11... Re8+ {[%clk 0:04:16.4]} 12. Ne2 {[%clk 0:04:15.1]}
12... Nd4 {[%clk 0:04:13.7]} 0-1

[Event "Live Chess"]
[Site "Chess.com"]
[Date "2023.05.21"]
[Round "-"]
[White "MarkLim1"]
[Black "youtookmyhorse"]
[Result "1-0"]
[WhiteElo "1710"]
[BlackElo "784"]
[TimeControl "300"]
[EndTime "8:48:05 PDT"]
[Termination "MarkLim1 won by checkmate"]

1. e4 {[%clk 0:04:55.4]} 1... c6 {[%clk 0:04:59.5]} 2. d4 {[%clk 0:04:54.3]}
2... d5 {[%clk 0:04:59]} 3. exd5 {[%clk 0:04:53.6]} 3... cxd5 {[%clk 0:04:58.2]}
4. Bd3 {[%clk 0:04:53]} 4... Nc6 {[%clk 0:04:52.5]} 5. c3 {[%clk 0:04:51.9]}
5... Nf6 {[%clk 0:04:50.4]} 6. Bf4 {[%clk 0:04:50.7]} 6... Bg4 {[%clk
0:04:46.6]} 7. Qb3 {[%clk 0:04:48.6]} 7... b6 {[%clk 0:04:37.8]} 8. Nd2 {[%clk
0:04:45.8]} 8... e6 {[%clk 0:04:35.1]} 9. Ngf3 {[%clk 0:04:44.8]} 9... Bxf3
{[%clk 0:04:33.5]} 10. Nxf3 {[%clk 0:04:43.7]} 10... Bd6 {[%clk 0:04:30.8]} 11.
Bxd6 {[%clk 0:04:36.7]} 11... Qxd6 {[%clk 0:04:29.4]} 12. Bb5 {[%clk 0:04:35.7]}
12... O-O {[%clk 0:04:26.1]} 13. O-O {[%clk 0:04:34.8]} 13... Ne7 {[%clk
0:04:18.9]} 14. Rfe1 {[%clk 0:04:33.9]} 14... Nf5 {[%clk 0:04:16.3]} 15. Ne5
{[%clk 0:04:32.2]} 15... Rac8 {[%clk 0:04:05.3]} 16. Bd3 {[%clk 0:04:29.3]}
16... Nh5 {[%clk 0:03:55.2]} 17. g4 {[%clk 0:04:19.6]} 17... Nf4 {[%clk
0:03:51]} 18. gxf5 {[%clk 0:04:17.8]} 18... Nxd3 {[%clk 0:03:50.1]} 19. Nxd3
{[%clk 0:04:17]} 19... exf5 {[%clk 0:03:42.4]} 20. Qd1 {[%clk 0:04:12.8]} 20...
f4 {[%clk 0:03:37.3]} 21. Qg4 {[%clk 0:04:09]} 21... f3 {[%clk 0:03:23.2]} 22.
Qxf3 {[%clk 0:04:06.1]} 22... Qg6+ {[%clk 0:03:21.3]} 23. Qg3 {[%clk 0:04:05.3]}
23... Qh6 {[%clk 0:03:05.4]} 24. Re5 {[%clk 0:03:57.4]} 24... Rce8 {[%clk
0:03:03.3]} 25. Rae1 {[%clk 0:03:54.1]} 25... Rxe5 {[%clk 0:03:01.1]} 26. Rxe5
{[%clk 0:03:52]} 26... Qd2 {[%clk 0:02:53]} 27. Rg5 {[%clk 0:03:40.7]} 27... g6
{[%clk 0:02:39.1]} 28. Re5 {[%clk 0:03:39.4]} 28... Qd1+ {[%clk 0:02:29.4]} 29.
Kg2 {[%clk 0:03:35]} 29... f6 {[%clk 0:02:22.5]} 30. Rxd5 {[%clk 0:03:33.8]}
30... Kf7 {[%clk 0:02:15.2]} 31. Rd7+ {[%clk 0:03:31.3]} 31... Kg8 {[%clk
0:02:12]} 32. Qh3 {[%clk 0:03:21]} 32... h5 {[%clk 0:02:03.3]} 33. Qg3 {[%clk
0:03:09.8]} 33... Qg4 {[%clk 0:01:42.6]} 34. Qxg4 {[%clk 0:03:07.1]} 34... hxg4
{[%clk 0:01:41.7]} 35. Rxa7 {[%clk 0:03:05.9]} 35... Re8 {[%clk 0:01:31.6]} 36.
Rb7 {[%clk 0:03:00.8]} 36... Re6 {[%clk 0:01:27.8]} 37. Nf4 {[%clk 0:02:56.6]}
37... Re2 {[%clk 0:01:18]} 38. Nxe2 {[%clk 0:02:55]} 38... f5 {[%clk 0:01:16.3]}
39. Nf4 {[%clk 0:02:51.2]} 39... g5 {[%clk 0:01:15.9]} 40. Ne6 {[%clk
0:02:50.3]} 40... f4 {[%clk 0:01:14.8]} 41. Nxg5 {[%clk 0:02:49.1]} 41... f3+
{[%clk 0:01:14]} 42. Kg3 {[%clk 0:02:48.3]} 42... Kf8 {[%clk 0:01:12]} 43. Kxg4
{[%clk 0:02:47.5]} 43... Kg8 {[%clk 0:01:10.3]} 44. Kf5 {[%clk 0:02:45.7]} 44...
Kf8 {[%clk 0:01:09.3]} 45. Ne6+ {[%clk 0:02:43.2]} 45... Ke8 {[%clk 0:01:08.2]}
46. Kf6 {[%clk 0:02:36]} 46... b5 {[%clk 0:01:05.4]} 47. Re7# {[%clk 0:02:35.3]}
1-0

[Event "Live Chess"]
[Site "Chess.com"]
[Date "2023.05.21"]
[Round "-"]
[White "Crowded_House"]
[Black "onemoretime1975"]
[Result "0-1"]
[WhiteElo "1617"]
[BlackElo "1840"]
[TimeControl "300"]
[EndTime "8:48:07 PDT"]
[Termination "onemoretime1975 won by resignation"]

1. d4 {[%clk 0:04:59.2]} 1... d5 {[%clk 0:04:58]} 2. Bg5 {[%clk 0:04:54.5]} 2...
Nf6 {[%clk 0:04:52.6]} 3. e3 {[%clk 0:04:51.8]} 3... e6 {[%clk 0:04:49.9]} 4.
Nd2 {[%clk 0:04:49.5]} 4... Be7 {[%clk 0:04:48.6]} 5. Bd3 {[%clk 0:04:47.1]}
5... h6 {[%clk 0:04:45.7]} 6. Bh4 {[%clk 0:04:45.4]} 6... Nbd7 {[%clk
0:04:43.7]} 7. Ngf3 {[%clk 0:04:44.3]} 7... Nh5 {[%clk 0:04:41.6]} 8. Bxe7
{[%clk 0:04:42.6]} 8... Qxe7 {[%clk 0:04:40.3]} 9. Ne5 {[%clk 0:04:33.9]} 9...
Nhf6 {[%clk 0:04:38.1]} 10. Nxd7 {[%clk 0:04:31.3]} 10... Bxd7 {[%clk
0:04:36.2]} 11. O-O {[%clk 0:04:29.9]} 11... O-O {[%clk 0:04:32.4]} 12. c3
{[%clk 0:04:29.1]} 12... a6 {[%clk 0:04:31.1]} 13. Nf3 {[%clk 0:04:28.1]} 13...
Bb5 {[%clk 0:04:28.7]} 14. Bxb5 {[%clk 0:04:25]} 14... axb5 {[%clk 0:04:27.5]}
15. a3 {[%clk 0:04:24.4]} 15... c6 {[%clk 0:04:25.5]} 16. Ne5 {[%clk 0:04:21.3]}
16... Nd7 {[%clk 0:04:24.2]} 17. Nxd7 {[%clk 0:04:20.1]} 17... Qxd7 {[%clk
0:04:23.3]} 18. Re1 {[%clk 0:04:17.9]} 18... f5 {[%clk 0:04:21]} 19. Qh5 {[%clk
0:04:09.2]} 19... Qf7 {[%clk 0:04:19.2]} 20. Qxf7+ {[%clk 0:04:06.7]} 20... Rxf7
{[%clk 0:04:18.2]} 21. f3 {[%clk 0:04:05.7]} 21... Raf8 {[%clk 0:04:04.7]} 22.
Rf1 {[%clk 0:04:04.8]} 22... g5 {[%clk 0:04:02.5]} 23. f4 {[%clk 0:04:02.4]}
23... g4 {[%clk 0:03:57.5]} 24. g3 {[%clk 0:04:00.1]} 24... Ra8 {[%clk 0:03:54]}
25. Ra2 {[%clk 0:03:51.6]} 25... b6 {[%clk 0:03:46.2]} 26. Rfa1 {[%clk
0:03:49.7]} 26... Rfa7 {[%clk 0:03:44.2]} 27. Kf2 {[%clk 0:03:41]} 27... Kf7
{[%clk 0:03:42.2]} 28. Kg2 {[%clk 0:03:35.9]} 28... h5 {[%clk 0:03:39.2]} 29. h3
{[%clk 0:03:32.3]} 29... Rh8 {[%clk 0:03:30.3]} 30. hxg4 {[%clk 0:03:22.3]}
30... hxg4 {[%clk 0:03:28.5]} 31. Rh1 {[%clk 0:03:20.8]} 31... Rxh1 {[%clk
0:03:24.4]} 32. Kxh1 {[%clk 0:03:19.8]} 32... c5 {[%clk 0:03:14.9]} 33. Kg2
{[%clk 0:03:16.5]} 33... Ke7 {[%clk 0:03:08.9]} 34. Ra1 {[%clk 0:03:15.6]} 34...
b4 {[%clk 0:03:02.7]} 35. cxb4 {[%clk 0:03:04.6]} 35... cxb4 {[%clk 0:03:00.1]}
36. a4 {[%clk 0:03:00.9]} 36... Ra5 {[%clk 0:02:54.8]} 37. b3 {[%clk 0:02:58.5]}
37... b5 {[%clk 0:02:53.4]} 38. Rb1 {[%clk 0:02:35.6]} 38... bxa4 {[%clk
0:02:49.4]} 39. bxa4 {[%clk 0:02:34.7]} 39... Rxa4 {[%clk 0:02:48.6]} 40. Rb3
{[%clk 0:02:32.9]} 40... Kd6 {[%clk 0:02:45.7]} 41. Kf2 {[%clk 0:02:28.1]} 41...
Kc6 {[%clk 0:02:43.8]} 42. Rb2 {[%clk 0:02:24]} 42... Kb5 {[%clk 0:02:37.6]} 43.
Ke2 {[%clk 0:02:20.9]} 43... Ra3 {[%clk 0:02:30.8]} 44. Kd2 {[%clk 0:02:14.1]}
44... Kc4 {[%clk 0:02:24.3]} 45. Rc2+ {[%clk 0:02:12.9]} 45... Kb3 {[%clk
0:02:23]} 46. Rc6 {[%clk 0:02:07.2]} 46... Ra2+ {[%clk 0:02:07.6]} 47. Kd3
{[%clk 0:02:03.2]} 47... Rg2 {[%clk 0:01:59.2]} 48. Rxe6 {[%clk 0:01:58.4]}
48... Rxg3 {[%clk 0:01:58]} 49. Re5 {[%clk 0:01:56.7]} 49... Ka2 {[%clk
0:01:53.2]} 50. Rxd5 {[%clk 0:01:55.1]} 50... b3 {[%clk 0:01:52.1]} 51. Rxf5
{[%clk 0:01:53.7]} 51... b2 {[%clk 0:01:48.8]} 52. Rb5 {[%clk 0:01:51.6]} 52...
b1=Q+ {[%clk 0:01:46.1]} 53. Rxb1 {[%clk 0:01:49.6]} 53... Kxb1 {[%clk
0:01:44.6]} 54. d5 {[%clk 0:01:48]} 54... Rg1 {[%clk 0:01:39.3]} 55. Ke4 {[%clk
0:01:44.7]} 55... g3 {[%clk 0:01:38.3]} 56. Kf3 {[%clk 0:01:43.1]} 56... g2
{[%clk 0:01:23.2]} 57. Kf2 {[%clk 0:01:37.5]} 57... Re1 {[%clk 0:01:18.1]} 58.
Kxg2 {[%clk 0:01:31.9]} 58... Rxe3 {[%clk 0:01:16.8]} 59. Kf2 {[%clk 0:01:30.9]}
59... Rd3 {[%clk 0:01:14.7]} 60. Ke2 {[%clk 0:01:26.1]} 60... Kc2 {[%clk
0:01:13.4]} 61. f5 {[%clk 0:01:21.5]} 61... Rxd5 {[%clk 0:01:11.1]} 62. f6
{[%clk 0:01:19.5]} 62... Rf5 {[%clk 0:01:09.6]} 63. Ke3 {[%clk 0:01:18.9]} 63...
Rxf6 {[%clk 0:01:08.4]} 64. Ke4 {[%clk 0:01:18.7]} 64... Kc3 {[%clk 0:01:06.9]}
0-1

[Event "Live Chess"]
[Site "Chess.com"]
[Date "2023.05.21"]
[Round "-"]
[White "jimwad"]
[Black "FlyingChessKestrel13"]
[Result "0-1"]
[WhiteElo "1222"]
[BlackElo "2073"]
[TimeControl "300"]
[EndTime "8:48:14 PDT"]
[Termination "FlyingChessKestrel13 won by resignation"]

1. c4 {[%clk 0:04:57]} 1... Nf6 {[%clk 0:04:58.3]} 2. g3 {[%clk 0:04:56]} 2...
c6 {[%clk 0:04:56.8]} 3. Bg2 {[%clk 0:04:54.6]} 3... d5 {[%clk 0:04:56.4]} 4.
cxd5 {[%clk 0:04:53.3]} 4... cxd5 {[%clk 0:04:55.7]} 5. d4 {[%clk 0:04:50.7]}
5... Nc6 {[%clk 0:04:53.6]} 6. Nf3 {[%clk 0:04:48.7]} 6... g6 {[%clk 0:04:52]}
7. Nc3 {[%clk 0:04:46.6]} 7... Bg7 {[%clk 0:04:51.1]} 8. O-O {[%clk 0:04:44.8]}
8... O-O {[%clk 0:04:50.2]} 9. e3 {[%clk 0:04:42.4]} 9... Bg4 {[%clk 0:04:48.2]}
10. Qb3 {[%clk 0:04:38.6]} 10... Qd7 {[%clk 0:04:46.2]} 11. Ne5 {[%clk
0:04:27.7]} 11... Nxe5 {[%clk 0:04:44.5]} 12. dxe5 {[%clk 0:04:26.4]} 12... Ne4
{[%clk 0:04:42.4]} 13. Bxe4 {[%clk 0:04:20]} 13... dxe4 {[%clk 0:04:40.8]} 14.
Nxe4 {[%clk 0:04:17.5]} 14... Bf3 {[%clk 0:04:37]} 15. Nd2 {[%clk 0:04:09.5]}
15... Bc6 {[%clk 0:04:33.6]} 16. e4 {[%clk 0:03:40.6]} 16... Bxe5 {[%clk
0:04:28.5]} 17. f4 {[%clk 0:03:36.1]} 17... Bd4+ {[%clk 0:04:26]} 18. Kg2 {[%clk
0:03:30.6]} 18... Kh8 {[%clk 0:04:07.5]} 19. Qd3 {[%clk 0:03:27.7]} 19... f5
{[%clk 0:04:03.8]} 20. Re1 {[%clk 0:03:15.3]} 20... Rad8 {[%clk 0:03:50.4]} 21.
Kf1 {[%clk 0:03:03.8]} 21... fxe4 {[%clk 0:03:47.2]} 22. Nxe4 {[%clk 0:02:59.8]}
22... Qh3+ {[%clk 0:03:45.8]} 23. Ke2 {[%clk 0:02:52.8]} 23... Qxh2+ {[%clk
0:03:43.9]} 24. Kd1 {[%clk 0:02:48.4]} 24... Bg7 {[%clk 0:03:39.4]} 25. Re2
{[%clk 0:02:40.5]} 25... Rxd3+ {[%clk 0:03:36.8]} 26. Bd2 {[%clk 0:02:31.4]}
26... Qg1+ {[%clk 0:03:26.4]} 0-1

[Event "Live Chess"]
[Site "Chess.com"]
[Date "2023.05.21"]
[Round "-"]
[White "Alfiedog12"]
[Black "Mugzwang"]
[Result "0-1"]
[WhiteElo "868"]
[BlackElo "1438"]
[TimeControl "300"]
[EndTime "8:48:15 PDT"]
[Termination "Mugzwang won by checkmate"]

1. d4 {[%clk 0:04:58.8]} 1... d5 {[%clk 0:04:57.2]} 2. Nf3 {[%clk 0:04:58.2]}
2... Nf6 {[%clk 0:04:55.7]} 3. Bf4 {[%clk 0:04:57.7]} 3... c5 {[%clk 0:04:53.3]}
4. c3 {[%clk 0:04:55]} 4... Nc6 {[%clk 0:04:51.4]} 5. Nbd2 {[%clk 0:04:54.4]}
5... cxd4 {[%clk 0:04:41]} 6. Nxd4 {[%clk 0:04:44.7]} 6... Nxd4 {[%clk
0:04:36.6]} 7. cxd4 {[%clk 0:04:43.8]} 7... Bf5 {[%clk 0:04:34.2]} 8. e3 {[%clk
0:04:37.7]} 8... g6 {[%clk 0:04:16.4]} 9. Qa4+ {[%clk 0:04:35.6]} 9... Bd7
{[%clk 0:04:12.8]} 10. Bb5 {[%clk 0:04:30.5]} 10... Bg7 {[%clk 0:04:07.6]} 11.
O-O {[%clk 0:04:28.1]} 11... O-O {[%clk 0:03:58.2]} 12. Rac1 {[%clk 0:04:26.2]}
12... Bxb5 {[%clk 0:03:37.9]} 13. Qxb5 {[%clk 0:04:22.5]} 13... b6 {[%clk
0:03:28.7]} 14. Rc7 {[%clk 0:04:14.8]} 14... Nh5 {[%clk 0:03:13.6]} 15. Rfc1
{[%clk 0:03:54.7]} 15... Nxf4 {[%clk 0:03:09.6]} 16. exf4 {[%clk 0:03:54]} 16...
Bxd4 {[%clk 0:03:00.4]} 17. Rd7 {[%clk 0:03:41.5]} 17... Qe8 {[%clk 0:02:50.2]}
18. Rcc7 {[%clk 0:03:35]} 18... Bc5 {[%clk 0:02:34.8]} 19. Qc6 {[%clk
0:03:14.3]} 19... Bd6 {[%clk 0:02:23.4]} 20. Rb7 {[%clk 0:03:07]} 20... Rc8
{[%clk 0:01:58.5]} 21. Qb5 {[%clk 0:02:59.1]} 21... Rc5 {[%clk 0:01:53.1]} 22.
Qa6 {[%clk 0:02:46.3]} 22... Qc8 {[%clk 0:01:43.9]} 23. Qxa7 {[%clk 0:02:36]}
23... Rc1+ {[%clk 0:01:25.8]} 24. Nf1 {[%clk 0:02:31.8]} 24... Qc2 {[%clk
0:01:24.7]} 25. h3 {[%clk 0:02:28.1]} 25... Qd1 {[%clk 0:01:22.3]} 26. Qa6
{[%clk 0:02:19.6]} 26... Bxf4 {[%clk 0:01:11.9]} 27. Rxe7 {[%clk 0:02:04.8]}
27... d4 {[%clk 0:00:42.9]} 28. Re4 {[%clk 0:01:50.8]} 28... g5 {[%clk
0:00:24.1]} 29. Rd7 {[%clk 0:01:42]} 29... Qd3 {[%clk 0:00:12.3]} 30. Rdxd4
{[%clk 0:01:37.2]} 30... Qxa6 {[%clk 0:00:10.6]} 31. a3 {[%clk 0:01:22.6]} 31...
Qxf1# {[%clk 0:00:08.9]} 0-1

[Event "Live Chess"]
[Site "Chess.com"]
[Date "2023.05.21"]
[Round "-"]
[White "AttackingSnowLeopard"]
[Black "Ninifu"]
[Result "1-0"]
[WhiteElo "2174"]
[BlackElo "2017"]
[TimeControl "300"]
[EndTime "8:48:29 PDT"]
[Termination "AttackingSnowLeopard won by resignation"]

1. d4 {[%clk 0:04:57.3]} 1... Nf6 {[%clk 0:04:58.6]} 2. c4 {[%clk 0:04:50.1]}
2... g6 {[%clk 0:04:56.7]} 3. Nc3 {[%clk 0:04:48.5]} 3... Bg7 {[%clk 0:04:55.8]}
4. e4 {[%clk 0:04:47.5]} 4... d6 {[%clk 0:04:55]} 5. Be2 {[%clk 0:04:46.4]} 5...
O-O {[%clk 0:04:54.4]} 6. Be3 {[%clk 0:04:45]} 6... e5 {[%clk 0:04:50.7]} 7. d5
{[%clk 0:04:44.1]} 7... a5 {[%clk 0:04:48.9]} 8. g4 {[%clk 0:04:42.5]} 8... Na6
{[%clk 0:04:48.1]} 9. h4 {[%clk 0:04:41.1]} 9... Nd7 {[%clk 0:04:45.1]} 10. h5
{[%clk 0:04:39.2]} 10... f5 {[%clk 0:04:36.3]} 11. hxg6 {[%clk 0:04:32.2]} 11...
f4 {[%clk 0:04:31.6]} 12. gxh7+ {[%clk 0:04:30.3]} 12... Kh8 {[%clk 0:04:29.3]}
13. Bd2 {[%clk 0:04:29.8]} 13... Nac5 {[%clk 0:04:13.5]} 14. Nf3 {[%clk
0:04:26.9]} 14... Nf6 {[%clk 0:04:11.5]} 15. g5 {[%clk 0:04:23.7]} 15... Nfxe4
{[%clk 0:04:09.3]} 16. Nxe4 {[%clk 0:04:18.6]} 16... Nxe4 {[%clk 0:04:08.4]} 17.
Bd3 {[%clk 0:04:18.2]} 17... Nxg5 {[%clk 0:03:53.2]} 18. Nxg5 {[%clk 0:04:15.4]}
18... Qxg5 {[%clk 0:03:52.3]} 19. Qc2 {[%clk 0:04:15]} 19... Bf5 {[%clk
0:03:45.4]} 20. O-O-O {[%clk 0:04:07.4]} 20... Bxd3 {[%clk 0:03:31.6]} 21. Qxd3
{[%clk 0:04:05.9]} 21... Qf5 {[%clk 0:03:29.6]} 22. Qxf5 {[%clk 0:04:04.6]}
22... Rxf5 {[%clk 0:03:28.2]} 23. f3 {[%clk 0:04:04.3]} 23... Re8 {[%clk
0:03:24.8]} 24. Bxa5 {[%clk 0:04:02.7]} 24... e4 {[%clk 0:03:22]} 25. Bxc7
{[%clk 0:03:46.1]} 25... exf3 {[%clk 0:03:16.3]} 26. Bxd6 {[%clk 0:03:44.8]}
26... Re2 {[%clk 0:03:12.9]} 27. Ba3 {[%clk 0:03:39.3]} 27... f2 {[%clk
0:03:07.1]} 28. d6 {[%clk 0:03:37.8]} 28... Rf8 {[%clk 0:02:59.6]} 29. d7 {[%clk
0:03:36.9]} 29... Rd8 {[%clk 0:02:58.9]} 30. c5 {[%clk 0:03:22.5]} 30... Be5
{[%clk 0:02:33.4]} 31. c6 {[%clk 0:03:15.3]} 31... bxc6 {[%clk 0:02:29.4]} 32.
Kb1 {[%clk 0:02:26.9]} 32... f3 {[%clk 0:01:56.2]} 33. Be7 {[%clk 0:02:21.2]}
33... Rxb2+ {[%clk 0:01:53]} 34. Kc1 {[%clk 0:02:19.9]} 1-0

[Event "Live Chess"]
[Site "Chess.com"]
[Date "2023.05.21"]
[Round "-"]
[White "Tiltador"]
[Black "WelshTiger"]
[Result "0-1"]
[WhiteElo "934"]
[BlackElo "2321"]
[TimeControl "300"]
[EndTime "8:48:30 PDT"]
[Termination "WelshTiger won by checkmate"]

1. e4 {[%clk 0:04:55.9]} 1... c5 {[%clk 0:04:58]} 2. Nf3 {[%clk 0:04:54.7]} 2...
d6 {[%clk 0:04:57.5]} 3. d3 {[%clk 0:04:53.8]} 3... g6 {[%clk 0:04:56]} 4. Be2
{[%clk 0:04:52.9]} 4... Bg7 {[%clk 0:04:55.5]} 5. O-O {[%clk 0:04:52]} 5... Nc6
{[%clk 0:04:55.2]} 6. Be3 {[%clk 0:04:50]} 6... e5 {[%clk 0:04:54.3]} 7. Nc3
{[%clk 0:04:49]} 7... Nge7 {[%clk 0:04:53.6]} 8. Nd5 {[%clk 0:04:47.7]} 8...
Nxd5 {[%clk 0:04:52.5]} 9. exd5 {[%clk 0:04:46.9]} 9... Ne7 {[%clk 0:04:52.4]}
10. c4 {[%clk 0:04:45.7]} 10... Nf5 {[%clk 0:04:51.4]} 11. b3 {[%clk 0:04:43.7]}
11... a6 {[%clk 0:04:48.8]} 12. Bg5 {[%clk 0:04:31.1]} 12... f6 {[%clk
0:04:45.4]} 13. Be3 {[%clk 0:04:28.4]} 13... O-O {[%clk 0:04:44.4]} 14. g3
{[%clk 0:04:14.1]} 14... b5 {[%clk 0:04:39.7]} 15. cxb5 {[%clk 0:04:10.9]} 15...
axb5 {[%clk 0:04:38.4]} 16. a3 {[%clk 0:04:04.5]} 16... Bd7 {[%clk 0:04:36.5]}
17. b4 {[%clk 0:04:01.2]} 17... Nxe3 {[%clk 0:04:26.7]} 18. fxe3 {[%clk
0:03:58.4]} 18... Qb6 {[%clk 0:04:25.8]} 19. d4 {[%clk 0:03:43.4]} 19... exd4
{[%clk 0:04:20.5]} 20. exd4 {[%clk 0:03:41.2]} 20... c4 {[%clk 0:04:19.9]} 21.
Kg2 {[%clk 0:03:33.7]} 21... Rae8 {[%clk 0:04:14.3]} 22. Qc2 {[%clk 0:03:27.1]}
22... Bf5 {[%clk 0:04:09.6]} 23. Qc3 {[%clk 0:03:22]} 23... Be4 {[%clk 0:04:09]}
24. Rae1 {[%clk 0:03:10.2]} 24... f5 {[%clk 0:04:07.4]} 25. Kg1 {[%clk
0:03:05.7]} 25... Bxd5 {[%clk 0:04:01.7]} 26. Ng5 {[%clk 0:02:50]} 26... Bxd4+
{[%clk 0:03:59.9]} 27. Qxd4 {[%clk 0:02:43.4]} 27... Qxd4+ {[%clk 0:03:59.8]}
28. Rf2 {[%clk 0:02:38.6]} 28... f4 {[%clk 0:03:50.8]} 29. gxf4 {[%clk 0:02:29]}
29... Rxf4 {[%clk 0:03:48]} 30. Nh3 {[%clk 0:01:56.4]} 30... Rxf2 {[%clk
0:03:45.6]} 31. Nxf2 {[%clk 0:01:54.9]} 31... Rf8 {[%clk 0:03:43.9]} 32. Rf1
{[%clk 0:01:51.3]} 32... Qe3 {[%clk 0:03:39.7]} 33. Bg4 {[%clk 0:01:48.1]} 33...
h5 {[%clk 0:03:34.8]} 34. Bh3 {[%clk 0:01:46.2]} 34... Qf3 {[%clk 0:03:20.9]}
35. Bg2 {[%clk 0:01:44.7]} 35... Qxg2# {[%clk 0:03:19.7]} 0-1

[Event "Live Chess"]
[Site "Chess.com"]
[Date "2023.05.21"]
[Round "-"]
[White "Hacker_2009"]
[Black "Ian-Morley"]
[Result "1-0"]
[WhiteElo "1947"]
[BlackElo "1096"]
[TimeControl "300"]
[EndTime "8:48:36 PDT"]
[Termination "Hacker_2009 won by resignation"]

1. d4 {[%clk 0:04:57.6]} 1... e5 {[%clk 0:04:58.5]} 2. Nf3 {[%clk 0:04:56]} 2...
exd4 {[%clk 0:04:56.2]} 3. Nxd4 {[%clk 0:04:54.5]} 3... Nf6 {[%clk 0:04:55.9]}
4. e3 {[%clk 0:04:52.7]} 4... Bb4+ {[%clk 0:04:55]} 5. Bd2 {[%clk 0:04:51]} 5...
Bxd2+ {[%clk 0:04:54.4]} 6. Qxd2 {[%clk 0:04:49.4]} 6... d5 {[%clk 0:04:53.9]}
7. c4 {[%clk 0:04:48.2]} 7... dxc4 {[%clk 0:04:52.5]} 8. Bxc4 {[%clk 0:04:45.8]}
8... O-O {[%clk 0:04:51.3]} 9. O-O {[%clk 0:04:44.3]} 9... Be6 {[%clk 0:04:50]}
10. Bxe6 {[%clk 0:04:41.2]} 10... fxe6 {[%clk 0:04:49.2]} 11. Nxe6 {[%clk
0:04:40.7]} 11... Qe7 {[%clk 0:04:48.5]} 12. Nxf8 {[%clk 0:04:39.1]} 12... Qxf8
{[%clk 0:04:48.1]} 13. Nc3 {[%clk 0:04:38.3]} 13... Nc6 {[%clk 0:04:47.6]} 14.
Rfd1 {[%clk 0:04:36.7]} 14... Rd8 {[%clk 0:04:44.8]} 15. Qe2 {[%clk 0:04:35.9]}
15... Rxd1+ {[%clk 0:04:43.3]} 16. Rxd1 {[%clk 0:04:34.5]} 16... h6 {[%clk
0:04:39.6]} 17. a3 {[%clk 0:04:33.5]} 17... Ne5 {[%clk 0:04:33.5]} 18. h3 {[%clk
0:04:31.1]} 18... b6 {[%clk 0:04:30.9]} 19. Qc2 {[%clk 0:04:22.4]} 19... c5
{[%clk 0:04:30]} 20. Nd5 {[%clk 0:04:19.8]} 1-0

[Event "Live Chess"]
[Site "Chess.com"]
[Date "2023.05.21"]
[Round "-"]
[White "Olisingapore"]
[Black "domrobson"]
[Result "0-1"]
[WhiteElo "1801"]
[BlackElo "1805"]
[TimeControl "300"]
[EndTime "8:48:38 PDT"]
[Termination "domrobson won by checkmate"]

1. d4 {[%clk 0:04:59.1]} 1... Nf6 {[%clk 0:04:58.8]} 2. c4 {[%clk 0:04:58.7]}
2... e6 {[%clk 0:04:57.9]} 3. g3 {[%clk 0:04:57.9]} 3... d5 {[%clk 0:04:57.2]}
4. Bg2 {[%clk 0:04:57.8]} 4... c6 {[%clk 0:04:56.4]} 5. Nf3 {[%clk 0:04:56.5]}
5... Nbd7 {[%clk 0:04:55.9]} 6. O-O {[%clk 0:04:56.2]} 6... Be7 {[%clk
0:04:54.3]} 7. Nc3 {[%clk 0:04:42]} 7... O-O {[%clk 0:04:52.1]} 8. Qd3 {[%clk
0:04:41.6]} 8... b6 {[%clk 0:04:48.9]} 9. e4 {[%clk 0:04:40.9]} 9... dxe4 {[%clk
0:04:47.4]} 10. Nxe4 {[%clk 0:04:40.8]} 10... Bb7 {[%clk 0:04:46.2]} 11. Bf4
{[%clk 0:04:38.3]} 11... Nxe4 {[%clk 0:04:44.7]} 12. Qxe4 {[%clk 0:04:36.9]}
12... Nf6 {[%clk 0:04:42.7]} 13. Qd3 {[%clk 0:04:34.7]} 13... c5 {[%clk
0:04:41.4]} 14. d5 {[%clk 0:04:33.6]} 14... exd5 {[%clk 0:04:40]} 15. cxd5
{[%clk 0:04:33.2]} 15... Qxd5 {[%clk 0:04:37.3]} 16. Rfd1 {[%clk 0:04:28.3]}
16... Rad8 {[%clk 0:04:34.6]} 17. Nd2 {[%clk 0:04:24.5]} 17... Qxg2# {[%clk
0:04:31.1]} 0-1